[Event "SVK ECo-C Extraliga 2021-22"]
[Site "Slovakia"]
[Date "2022.06.11"]
[Round "10"]
[White "Toth, Ervin"]
[Black "Polak, Tomas"]
[Result "1-0"]
[ECO "D36"]
[WhiteElo "2433"]
[BlackElo "2506"]
[Annotator "TA"]
[PlyCount "117"]
[EventDate "2021.10.21"]
[EventType "team-tourn"]
[EventCountry "SVK"]
[SourceTitle "playchess.com"]
[Source "ChessBase"]
[SourceQuality "1"]
[TimeControl "40/5400+30:1800+30"]

{[%evp 27,117,0,9,-11,17,0,0,0,0,0,0,0,9,0,0,0,0,0,48,41,54,53,125,123,149,149,170,141,166,158,150,150,168,139,296,327,311,303,342,372,440,404,845,843,836,797,777,674,655,525,498,487,636,244,466,467,420,510,443,436,652,643,764,736,656,910,1587,900,897,896,822,841,788,797,706,670,2220,1900,4577,5210,29969,29971,29971,29972,29972,29973,29968,29974,29974,29975,29974,29977]} 1. d4 {[%emt 0:00:19]} Nf6 {[%emt 0:00:20]} 2. c4 {[%emt 0:00:51]} e6 {[%emt 0:00:15]} 3. Nc3 {[%emt 0:00:08]} d5 {[%emt 0:01:21]} 4. cxd5 {[%emt 0:01:27]} exd5 {[%emt 0:00:06]} 5. Bg5 {[%emt 0:00:19]} c6 {[%emt 0:00:16]} 6. Qc2 {[%emt 0:01:14]} Be7 {[%emt 0:00:25]} 7. e3 {[%emt 0:00:25]} O-O {[%emt 0:02:47]} 8. Bd3 {[%emt 0:00:33]} Nbd7 {[%emt 0:00:09]} 9. Nf3 {[%emt 0:02:55]} Re8 {[%emt 0:00:27]} 10. O-O {[%emt 0:00:07]} Nf8 {[%emt 0:00:16]} 11. Ne5 {[%emt 0:00:46]} Ng4 {[%emt 0:03:49]} 12. Bxe7 {[%emt 0:02:34]} Qxe7 {[%emt 0:01:40]} 13. Nxg4 {[%emt 0:00:26]} Bxg4 {[%emt 0:00:06]} 14. Rae1 {[%emt 0:00:05]} Rad8 {[%emt 0:04:09]} 15. f4 {[%emt 0:02:13] D36: Queen's Gambit Declined: Exchange Variation: Main line (5 Bg5 c6 6 Qc2).} f6 {[%emt 0:02:04]} 16. h3 {[%emt 0:02:15]} Bh5 {[%emt 0:01:01]} 17. g4 {[%emt 0:15:56] The position is equal.} Bg6 {[%emt 0:01:29]} 18. f5 {[%emt 0:02:44]} Bf7 {[%emt 0:00:07] [#]} 19. Qg2 $146 {[%emt 0:02:23]} ({Predecessor:} 19. Rf3 c5 20. dxc5 Qxc5 21. Ne2 Qa5 22. Qb1 Nd7 23. Nd4 Ne5 24. Rf2 Nxd3 25. Qxd3 Qxe1+ 26. Kg2 Qxe3 27. Qxe3 Rxe3 28. Rc2 Rd3 29. Nb5 a6 {0-1 (29) Mira,H (2096)-Essing,A (2253) Playchess.com INT 2004}) 19... a6 {[%emt 0:06:14]} 20. Rf3 {[%emt 0:06:09]} Kh8 {[%emt 0:13:03]} 21. Ref1 {[%emt 0:06:21]} c5 {[%emt 0:06:34]} 22. h4 {[%emt 0:02:19]} Qd6 {[%emt 0:12:25]} (22... Nd7 $11 {is superior.}) 23. Qf2 $14 {[%emt 0:09:31]} Re7 {[%emt 0:04:56]} 24. Ne2 {[%emt 0:00:22]} Rde8 {[%emt 0:02:44] [#]} (24... c4 $14 25. Bc2 Qb4) 25. Nf4 $1 $16 {[%emt 0:01:10]} cxd4 {[%emt 0:06:09]} 26. exd4 {[%emt 0:00:11]} Qb4 {[%emt 0:00:23]} 27. a3 {[%emt 0:03:40]} Qa5 {[%emt 0:01:02]} 28. g5 {[%emt 0:03:02]} Re1 {[%emt 0:01:45]} 29. g6 $36 {[%emt 0:01:00][%mdl 2048] White is on the roll.} Rxf1+ {[%emt 0:01:53]} 30. Kxf1 {[%emt 0:00:10]} (30. Qxf1 $2 Re1 31. gxf7 Rxf1+ 32. Rxf1 Qc7 $17) 30... hxg6 {[%emt 0:02:08] This costs Black the game.} (30... Bg8 $16) 31. fxg6 $18 {[%emt 0:01:32]} Be6 {[%emt 0:02:19]} 32. h5 {[%emt 0:05:33][%cal Bh4h5,Bh5h6][%mdl 32] aiming for Qh4.} ({Weaker is} 32. Re3 Qa4 $16) 32... Bg4 {[%emt 0:10:15] [#]} 33. Rg3 {[%emt 0:00:37]} Qa4 {[%emt 0:00:30]} 34. h6 {[%emt 0:10:42]} Qd7 {[%emt 0:10:01]} (34... Qd1+ $2 35. Kg2 f5 36. Re3) (34... Kg8 $142 35. Bc2 (35. Nxd5 f5 $18) (35. h7+ Kh8 $11) 35... Qc4+ 36. Kg1 Ne6) 35. Qh2 {[%emt 0:00:20]} Re4 {[%emt 0:02:23]} 36. Bxe4 {[%emt 0:03:02]} dxe4 {[%emt 0:00:05]} 37. Qh4 {[%emt 0:01:06]} f5 {[%emt 0:00:22]} 38. Nh5 {[%emt 0:10:36]} Bxh5 {[%emt 0:02:28]} 39. Qxh5 {[%emt 0:00:07][%mdl 4096] Endgame KQR-KQN} Qb5+ {[%emt 0:00:50]} 40. Kg1 $2 {[%emt 0:01:11]} (40. Ke1 {White wants to mate with Rh3.} f4 41. Qxb5 axb5 42. Rg4) 40... Qd5 $2 {[%emt 0:00:19]} (40... Qxb2 41. Qxf5 (41. hxg7+ Kxg7 42. Qxf5 Qxd4+ 43. Kg2 Qd2+ 44. Qf2 Qd7 $18) 41... Qxd4+ 42. Kg2 Qd2+ 43. Qf2 e3 44. Rxe3 Qd5+ 45. Qf3 Qg5+ 46. Kf2 Qh4+ 47. Ke2 Qc4+ 48. Kd1 Nxg6 49. hxg7+ Kxg7 50. Qxb7+ Kh6) 41. Kh2 {[%emt 0:31:14]} Kg8 {[%emt 0:08:00]} 42. h7+ {[%emt 0:00:00]} Kh8 {[%emt 0:00:06]} 43. Qg5 {[%emt 0:00:00]} Qb5 {[%emt 0:04:22]} (43... Qxd4 $142 44. Qxf5 Qd2+ 45. Kh3 Qh6+ 46. Kg4 Qxg6+ 47. Qxg6 Nxg6) 44. Rg2 {[%emt 0:00:00]} Qd7 {[%emt 0:09:08] Against Qd8} 45. Qf4 {[%emt 0:00:00] Inhibits Qc7.} Qd8 {[%emt 0:04:32]} 46. Kh3 {[%emt 0:00:00]} Qf6 {[%emt 0:04:27]} 47. Qe5 {[%emt 0:00:00] Threatening mate with Qxf6.} Nxg6 {[%emt 0:00:29]} 48. Qxf6 {[%emt 0:00:00]} Nf4+ {[%emt 0:00:05]} 49. Kg3 {[%emt 0:01:52] Intending Qf8+ and mate.} Nh5+ {[%emt 0:00:06]} 50. Kh4 {[%emt 0:00:10][%cal Oh4h5]} Nxf6 {[%emt 0:00:06] KR-KN} 51. Kg5 {[%emt 0:00:24] Strongly threatening Kg6.} Nd5 {[%emt 0:00:36]} 52. Kxf5 {[%emt 0:03:07]} Ne3+ {[%emt 0:00:07]} 53. Kxe4 {[%emt 0:00:03]} Nxg2 {[%emt 0:00:03] KN-KP} 54. d5 {[%emt 0:00:06][%cal Bd4d5,Bd5d6][%mdl 32] White mates.} g5 {[%emt 0:00:45]} 55. d6 {[%emt 0:00:05]} Nf4 {[%emt 0:00:07]} 56. Kf5 {[%emt 0:00:12]} Nd5 {[%emt 0:00:35]} 57. Kxg5 {[%emt 0:00:54]} Nb6 {[%emt 0:00:54]} 58. Kf6 {[%emt 0:01:07]} Kxh7 {[%emt 0:02:00]} 59. Ke6 {[%emt 0:00:24] Weighted Error Value: White=0.20 (precise) /Black=0.46} 1-0

[Event "SVK ECo-C Extraliga 2021-22"]
[Site "Slovakia"]
[Date "2022.06.11"]
[Round "10"]
[White "Pulpan, Jakub"]
[Black "Balogh, Csaba"]
[Result "1/2-1/2"]
[ECO "B22"]
[WhiteElo "2418"]
[BlackElo "2586"]
[Annotator "TA"]
[PlyCount "106"]
[EventDate "2021.10.21"]
[EventType "team-tourn"]
[EventCountry "SVK"]
[SourceTitle "playchess.com"]
[Source "ChessBase"]
[SourceQuality "1"]
[TimeControl "40/5400+30:1800+30"]

{[%evp 13,106,0,4,-18,-17,-31,-33,-31,-28,-50,-45,-58,-51,-50,-34,-49,-22,-24,-29,-35,-18,-86,-83,-86,-81,-83,-80,-80,-86,-97,-84,-87,-87,-88,-87,-87,-87,-87,-87,-88,-93,-87,-87,-87,-87,-87,-87,-87,-87,-87,-87,-87,-82,-82,-42,-104,-104,-104,-104,-105,-105,-105,-105,-105,-105,-105,-105,-105,-105,-105,-104,-104,-104,-104,-104,-104,0,0,0,0,0,0,0,0,0,0,0,0,0,0,0,0,0,0,0]} 1. e4 {[%emt 0:01:47]} c5 {[%emt 0:00:20]} 2. Nf3 {[%emt 0:01:17]} e6 {[%emt 0:00:18]} 3. c3 {[%emt 0:03:10]} d5 {[%emt 0:05:34]} 4. exd5 {[%emt 0:00:12]} Qxd5 {[%emt 0:00:32]} 5. d4 {[%emt 0:00:48]} Nf6 {[%emt 0:00:07]} 6. Be3 {[%emt 0:05:19]} cxd4 {[%emt 0:11:23]} 7. cxd4 {[%emt 0:00:47]} Bb4+ {[%emt 0:06:04]} 8. Nbd2 {[%emt 0:03:23][%cal Of1c4] B22: Sicilian: 2 c3.} O-O {[%emt 0:03:34]} 9. Be2 {[%emt 0:01:22] [#]} b6 $146 {[%emt 0:10:47]} ({Predecessor:} 9... Nbd7 10. O-O b6 11. Qa4 Qa5 12. Qb3 Bxd2 13. Bxd2 Qd5 14. Bc4 Qh5 15. Bf4 Bb7 {1-0 (50) Sezdbekov,R (2043)-Asanakunov,Z (2022) Bishkek 2016}) 10. O-O {[%emt 0:18:15] Black is slightly better.} Ba6 {[%emt 0:03:06]} 11. Bg5 {[%emt 0:09:13]} Bxd2 {[%emt 0:19:56]} 12. Bxf6 {[%emt 0:04:51]} ({Don't blunder} 12. Qxd2 $2 Ne4 13. Qe3 Bxe2 14. Qxe2 Nxg5 $19) 12... Bxe2 {[%emt 0:01:05]} 13. Qxe2 {[%emt 0:00:09]} Bb4 {[%emt 0:00:13]} 14. a3 {[%emt 0:06:30]} Bd6 {[%emt 0:00:22]} 15. Be5 {[%emt 0:04:07]} Nc6 {[%emt 0:00:31]} 16. Rac1 {[%emt 0:02:30]} Rfd8 {[%emt 0:01:13][%cal Bf8d8,Bd8d5,Bd5e5][%mdl 32]} 17. Qc4 {[%emt 0:07:34]} (17. Rc3 $11) 17... Bxe5 $17 {[%emt 0:08:01]} 18. dxe5 {[%emt 0:00:53]} Nxe5 {[%emt 0:01:25]} 19. Qxd5 {[%emt 0:00:34]} Rxd5 {[%emt 0:00:04]} 20. Nxe5 {[%emt 0:00:04]} Rxe5 {[%emt 0:00:04][%mdl 4096] Endgame KRR-KRR} 21. Rfd1 {[%emt 0:01:32]} g5 {[%emt 0:01:18]} 22. g3 {[%emt 0:01:22]} a5 {[%emt 0:01:32]} 23. Rd7 {[%emt 0:03:33]} Rb5 {[%emt 0:04:06]} 24. Rcc7 {[%emt 0:07:55]} Rf8 {[%emt 0:00:14]} 25. b4 {[%emt 0:02:30]} axb4 {[%emt 0:00:11]} 26. axb4 {[%emt 0:00:12]} Rxb4 {[%emt 0:00:05]} 27. Rb7 {[%emt 0:00:38]} g4 {[%emt 0:10:05]} 28. Kg2 {[%emt 0:02:49]} Kg7 {[%emt 0:02:31]} 29. h3 {[%emt 0:05:30]} h5 {[%emt 0:01:52]} 30. Rd6 {[%emt 0:02:32][%csl LRb6,LRe6]} Kg6 {[%emt 0:02:15]} 31. Rdxb6 {[%emt 0:01:07]} Rxb6 {[%emt 0:00:15]} 32. Rxb6 {[%emt 0:00:03] KR-KR} Rd8 {[%emt 0:00:08]} 33. Rb4 {[%emt 0:02:46]} f5 {[%emt 0:00:40]} 34. hxg4 {[%emt 0:01:24]} (34. h4 $15) 34... hxg4 {[%emt 0:00:14]} 35. Rb6 {[%emt 0:00:35]} Kf6 {[%emt 0:00:05]} 36. Ra6 {[%emt 0:00:42]} Ke5 {[%emt 0:00:25]} 37. Ra1 {[%emt 0:00:26]} Rd2 {[%emt 0:00:31]} 38. Ra6 {[%emt 0:00:29]} Kd5 {[%emt 0:00:23]} 39. Ra5+ {[%emt 0:00:29]} Ke4 {[%emt 0:00:09]} 40. Ra4+ {[%emt 0:00:20]} Rd4 {[%emt 0:00:34]} 41. Ra6 {[%emt 0:11:28]} e5 {[%emt 0:00:15]} 42. Ra3 {[%emt 0:00:48]} Rc4 {[%emt 0:00:43]} 43. Re3+ {[%emt 0:04:12]} Kd4 {[%emt 0:00:10]} 44. Ra3 {[%emt 0:00:01]} f4 {[%emt 0:14:35]} ({Black should try} 44... Rc1 $17 45. Ra2 Kd5) 45. gxf4 $11 {[%emt 0:00:25] The position is equal.} exf4 {[%emt 0:00:05]} 46. Ra8 {[%emt 0:02:32]} Rc2 {[%emt 0:08:53]} 47. Rf8 {[%emt 0:01:54]} Ke5 {[%emt 0:00:27]} 48. Re8+ {[%emt 0:00:11]} Kd5 {[%emt 0:00:16]} 49. Rf8 {[%emt 0:00:36]} Ke5 {[%emt 0:01:45]} 50. Re8+ {[%emt 0:00:32]} Kd5 {[%emt 0:01:52] [#] ( -> ...g3)} 51. Rf8 {[%emt 0:00:38]} g3 {[%emt 0:00:21]} (51... Ke4 $5) 52. Rxf4 {[%emt 0:00:05]} Rxf2+ {[%emt 0:00:03]} 53. Rxf2 {[%emt 0:00:05]} gxf2 {[%emt 0:00:05] Weighted Error Value: White=0.06 (flawless) /Black=0.05 (flawless)} 1/2-1/2

[Event "SVK ECo-C Extraliga 2021-22"]
[Site "Slovakia"]
[Date "2022.06.11"]
[Round "10"]
[White "Smolen, Jan"]
[Black "Halak, Miklos"]
[Result "1/2-1/2"]
[ECO "C47"]
[WhiteElo "2410"]
[BlackElo "2247"]
[Annotator "TA"]
[PlyCount "86"]
[EventDate "2021.10.21"]
[EventType "team-tourn"]
[EventCountry "SVK"]
[SourceTitle "playchess.com"]
[Source "ChessBase"]
[SourceQuality "1"]
[TimeControl "40/5400+30:1800+30"]

{[%evp 17,86,0,2,-4,13,0,0,0,4,0,0,5,31,16,31,0,0,0,0,0,0,0,9,-19,-25,-25,0,0,51,-12,0,0,-1,-24,-39,-35,26,15,25,24,40,10,46,39,23,23,43,0,0,0,3,3,3,3,4,4,44,44,44,44,44,44,44,44,44,44,44,44,44,44,55]} 1. e4 {[%emt 0:00:06]} e5 {[%emt 0:00:53]} 2. Nf3 {[%emt 0:00:04]} Nc6 {[%emt 0:00:06]} 3. Nc3 {[%emt 0:00:02]} Nf6 {[%emt 0:00:41]} 4. d4 {[%emt 0:00:02]} exd4 {[%emt 0:00:24]} 5. Nxd4 {[%emt 0:00:02]} Bb4 {[%emt 0:00:40]} 6. Nxc6 {[%emt 0:00:04]} bxc6 {[%emt 0:00:13]} 7. Bd3 {[%emt 0:00:03]} d5 {[%emt 0:01:15]} 8. exd5 {[%emt 0:00:02]} cxd5 {[%emt 0:01:40] 8...0-0 is the hot move.} 9. O-O {[%emt 0:00:03]} O-O {[%emt 0:00:52]} 10. h3 {[%emt 0:00:30] C47: Scotch Four Knights and Four Knights with 4 g3.} h6 {[%emt 0:00:54]} 11. Qf3 {[%emt 0:00:00]} c6 {[%emt 0:00:24]} 12. Bf4 {[%emt 0:00:00] The position is equal.} Bd6 {[%emt 0:00:17]} 13. Ne2 {[%emt 0:00:00]} Bxf4 {[%emt 0:01:59]} 14. Nxf4 {[%emt 0:00:00] [#]} Nd7 $146 {[%emt 0:06:28]} ({Predecessor:} 14... a5 15. Rfe1 a4 16. Rad1 Rb8 17. b3 axb3 18. axb3 Re8 19. Nh5 Nxh5 20. Qxh5 Rxe1+ 21. Rxe1 {½-½ (85) Goryachkina,A (2518)-Assaubayeva,B (2372) St Petersburg 2018}) 15. Rfe1 {[%emt 0:01:15]} Qf6 {[%emt 0:02:10]} 16. b3 {[%emt 0:04:20]} g5 {[%emt 0:06:35]} 17. Nh5 {[%emt 0:00:05]} Qxf3 {[%emt 0:00:41]} 18. gxf3 {[%emt 0:00:05]} Nc5 {[%emt 0:01:04]} 19. Kg2 {[%emt 0:02:27]} a5 {[%emt 0:05:50]} 20. Re7 {[%emt 0:05:01]} Be6 {[%emt 0:04:50] [#] Hoping for ...Rfc8.} 21. f4 {[%emt 0:01:30]} Nxd3 {[%emt 0:02:41]} 22. cxd3 {[%emt 0:00:22]} c5 {[%emt 0:01:56]} (22... Kh7 $11) 23. Rc1 {[%emt 0:01:10]} (23. Re1 $14 Rfc8 24. fxg5 hxg5 25. Re5) 23... Rfc8 {[%emt 0:04:48]} 24. fxg5 {[%emt 0:00:26]} hxg5 {[%emt 0:01:36]} 25. f4 {[%emt 0:01:50]} (25. Re1 $5 {[%cal Re1e5]}) 25... Kf8 {[%emt 0:03:05]} 26. Rb7 {[%emt 0:00:35]} Bf5 {[%emt 0:08:23]} (26... c4 $15 27. dxc4 (27. fxg5 cxd3 28. Rd1 Rc2+ 29. Kg3 d2 $15) 27... dxc4) 27. fxg5 $11 {[%emt 0:14:36]} Bxd3 {[%emt 0:00:17]} 28. Nf6 {[%emt 0:02:01]} c4 {[%emt 0:03:41]} 29. Kg3 {[%emt 0:13:57]} (29. Kf3 {seems wilder.} a4 30. h4 axb3 31. axb3 Kg7 32. h5) 29... cxb3 {[%emt 0:03:33]} (29... Kg7 {feels hotter.} 30. h4 a4 31. bxc4 dxc4 32. Nh5+ Kg8) 30. Rxc8+ {[%emt 0:00:17]} Rxc8 {[%emt 0:00:11]} 31. axb3 {[%emt 0:00:01][%mdl 4096] Endgame KRB-KRN} d4 {[%emt 0:00:52]} 32. Kf4 {[%emt 0:03:34] White wants to play h4.} Bc2 {[%emt 0:04:26]} 33. h4 {[%emt 0:00:35][%cal Bh3h4,Bh4h5][%mdl 32]} Rd8 {[%emt 0:02:57]} 34. h5 {[%emt 0:07:34][%cal Og5g6]} Kg7 {[%emt 0:01:51] [#] And now ...d3 would win.} 35. Ng4 {[%emt 0:17:11] aiming for g6.} d3 $1 {[%emt 0:14:27] ...Rd4+ is the strong threat.} 36. g6 {[%emt 0:03:31]} Rd4+ {[%emt 0:01:54]} (36... Bxb3 $5 37. Rxb3 Rd4+ 38. Ke3 Rxg4 $11) 37. Kg5 {[%emt 0:02:45] White is slightly better.} Rxg4+ $1 {[%emt 0:01:00]} 38. Kxg4 $14 {[%emt 0:00:14] Kg5 would kill now. KR-KB} d2 {[%emt 0:00:04]} 39. Kg5 $1 {[%emt 0:02:26] White wants to mate with h6+.} Bxg6 $1 {[%emt 0:02:02]} 40. Rd7 {[%emt 0:00:37]} Bc2 {[%emt 0:00:43]} 41. Rxd2 {[%emt 0:30:23]} Bxb3 {[%emt 0:30:16]} 42. Rd6 {[%emt 0:02:17]} a4 {[%emt 0:03:33]} 43. Ra6 {[%emt 0:00:04]} Kh7 {[%emt 0:01:24] Weighted Error Value: White=0.09 (flawless) /Black=0.11 (very precise)} 1/2-1/2

[Event "SVK ECo-C Extraliga 2021-22"]
[Site "Slovakia"]
[Date "2022.06.11"]
[Round "10"]
[White "Jurcik Martin"]
[Black "Motuz Karol"]
[Result "1-0"]
[ECO "C47"]
[WhiteElo "2391"]
[BlackElo "2297"]
[Annotator "TA"]
[PlyCount "74"]
[EventDate "2021.10.21"]
[EventType "team-tourn"]
[EventCountry "SVK"]
[SourceTitle "playchess.com"]
[Source "ChessBase"]
[SourceQuality "1"]
[TimeControl "40/5400+30:1800+30"]

{[%evp 22,74,11,0,13,13,20,18,13,14,15,16,15,14,13,17,52,51,55,49,51,47,89,89,89,89,111,111,111,111,119,119,119,119,119,119,166,166,188,187,187,187,206,210,213,195,202,187,306,294,335,301,396,389,406]} 1. e4 {[%emt 0:00:15]} e5 {[%emt 0:00:14]} 2. Nf3 {[%emt 0:00:21]} Nc6 {[%emt 0:00:08]} 3. Nc3 {[%emt 0:00:23]} Nf6 {[%emt 0:00:19]} 4. d4 {[%emt 0:00:34]} exd4 {[%emt 0:00:44]} 5. Nxd4 {[%emt 0:00:12]} Bb4 {[%emt 0:00:21]} 6. Nxc6 {[%emt 0:00:39]} bxc6 {[%emt 0:00:46]} 7. Bd3 {[%emt 0:00:23]} d5 {[%emt 0:00:39]} 8. exd5 {[%emt 0:00:29]} cxd5 {[%emt 0:00:05]} 9. O-O {[%emt 0:00:22]} O-O {[%emt 0:00:04]} 10. Bg5 {[%emt 0:00:29]} c6 {[%emt 0:00:07]} 11. Qf3 {[%emt 0:00:35]} Bd6 {[%emt 0:01:53]} 12. Rae1 {[%emt 0:01:27]} h6 {[%emt 0:02:05] C47: Scotch Four Knights and Four Knights with 4 g3.} 13. Bxf6 {[%emt 0:02:13]} Qxf6 {[%emt 0:00:13]} 14. Qxf6 {[%emt 0:00:09]} gxf6 {[%emt 0:00:01] The position is equal.} 15. Ne2 {[%emt 0:03:12] 15.Nd1 is the fancy move.} c5 {[%emt 0:17:51] [#] aiming for ...c4.} 16. Ng3 {[%emt 0:11:51]} Rb8 {[%emt 0:07:03]} 17. b3 {[%emt 0:01:47] Inhibits c4.} Be6 {[%emt 0:12:14]} 18. Nf5 {[%emt 0:01:55]} Bxf5 {[%emt 0:02:10]} 19. Bxf5 {[%emt 0:00:12]} Rfe8 {[%emt 0:00:45]} 20. Rd1 {[%emt 0:17:58]} Rbd8 {[%emt 0:05:37] [#]} 21. Rd3 $146 {[%emt 0:06:27]} ({Predecessor:} 21. g3 Bc7 22. Bg4 {½-½ (21) Wang,C (2485)-Hansen,S (2561) Pattaya 2013}) 21... d4 {[%emt 0:07:34]} 22. Rh3 {[%emt 0:00:54] White stays focused until the end.} Kg7 {[%emt 0:00:55]} 23. Bd3 {[%emt 0:00:58]} Re7 {[%emt 0:03:52]} 24. f4 {[%emt 0:03:11]} Re3 {[%emt 0:13:33]} 25. Rh5 {[%emt 0:02:54]} a5 {[%emt 0:06:27]} 26. a4 {[%emt 0:01:08]} Be7 {[%emt 0:02:06]} 27. Kf2 {[%emt 0:03:23]} Bd6 {[%emt 0:01:15]} 28. g3 {[%emt 0:00:33]} Be7 {[%emt 0:00:24]} (28... Re7 $16 29. Re1 Re6) 29. Re1 $18 {[%emt 0:02:07]} Rxe1 {[%emt 0:01:08]} 30. Kxe1 {[%emt 0:00:04][%mdl 4096] Endgame KRB-KRB} Bf8 {[%emt 0:07:41]} 31. Ke2 {[%emt 0:07:47]} Kg8 {[%emt 0:01:12]} 32. Be4 {[%emt 0:02:35]} Kg7 {[%emt 0:03:00]} 33. Kd3 {[%emt 0:00:46]} Be7 {[%emt 0:00:42]} 34. Rd5 {[%emt 0:08:17]} Rb8 {[%emt 0:03:49]} (34... Rxd5 $142 35. Bxd5 Kg6) 35. Rd7 {[%emt 0:00:49]} Kf8 {[%emt 0:00:26]} 36. Ra7 {[%emt 0:00:33]} f5 {[%emt 0:00:34]} 37. Bd5 {[%emt 0:00:53]} h5 {[%emt 0:00:00] Weighted Error Value: White=0.00 (flawless) /Black=0.20 (precise)} 1-0

[Event "SVK ECo-C Extraliga 2021-22"]
[Site "Slovakia"]
[Date "2022.06.11"]
[Round "10"]
[White "Lipka, Juraj"]
[Black "Pcola, Jaroslav"]
[Result "1-0"]
[ECO "E02"]
[WhiteElo "2379"]
[BlackElo "2044"]
[Annotator "TA"]
[PlyCount "45"]
[EventDate "2021.10.21"]
[EventType "team-tourn"]
[EventCountry "SVK"]
[SourceTitle "playchess.com"]
[Source "ChessBase"]
[SourceQuality "1"]
[TimeControl "40/5400+30:1800+30"]

{[%evp 17,45,29,47,12,61,64,141,141,143,132,142,132,270,268,329,301,470,468,441,434,440,453,585,582,559,579,679,674,698,688]} 1. d4 {[%emt 0:00:06]} Nf6 {[%emt 0:00:20]} 2. Nf3 {[%emt 0:00:16]} e6 {[%emt 0:01:12]} 3. c4 {[%emt 0:00:39]} d5 {[%emt 0:01:36][%cal Bd7d5,Bd5c4][%mdl 32]} 4. g3 {[%emt 0:00:33]} dxc4 {[%emt 0:02:21]} 5. Bg2 {[%emt 0:01:27]} c5 {[%emt 0:11:02]} 6. O-O {[%emt 0:01:43]} Be7 {[%emt 0:11:15]} 7. dxc5 {[%emt 1:29:16]} O-O {[%emt 1:06:14]} 8. Qc2 {[%emt 0:00:30]} Bxc5 {[%emt 0:00:30]} 9. Qxc4 {[%emt 0:00:30]} Nbd7 {[%emt 0:00:30]} 10. Nbd2 {[%emt 0:00:30] E02: Open Catalan: 5 Qa4+.} Rb8 {[%emt 0:00:30]} (10... Be7 $11) 11. Nb3 $1 $14 {[%emt 0:00:30]} b5 {[%emt 0:00:30]} (11... Be7 $14) 12. Qc2 $16 {[%emt 0:00:30] White is clearly better.} Bd6 {[%emt 0:00:30]} 13. Rd1 {[%emt 0:00:30]} Qc7 {[%emt 0:00:30] [#]} 14. Qd3 $146 {[%emt 0:00:30]} ({Predecessor:} 14. Qxc7 Bxc7 15. Be3 Nb6 16. Rac1 Nfd5 17. Bd4 f5 18. Ne5 Bd6 19. Nc6 Rb7 20. a3 {0-1 (29) Kutliev,R-Vorobev,K (2061) Soukhumi 2007}) 14... Be7 {[%emt 0:00:30] [#]} (14... Bc5 $16 {was worth a try.}) 15. Bf4 $1 $18 {[%emt 0:00:30]} e5 {[%emt 0:00:30]} 16. Rac1 {[%emt 0:00:30]} Qxc1 {[%emt 0:00:30]} (16... Bc5 $142 17. Nxc5 Nxc5 18. Nxe5 (18. Bxe5 Qxe5 19. Nxe5 Nxd3 $18) 18... Nxd3 19. Rxc7 Nxf4) 17. Bxc1 {[%emt 0:00:30] White is clearly winning.} ({Less strong is} 17. Nxc1 exf4 18. gxf4 a6 $18) 17... e4 {[%emt 0:00:30]} 18. Qe3 {[%emt 0:00:30]} exf3 {[%emt 0:00:30]} 19. Bxf3 {[%emt 0:00:30]} ({Not} 19. Qxe7 fxg2 20. Qa3 a6 $18) 19... Re8 {[%emt 0:00:30]} 20. Qxa7 {[%emt 0:00:30]} Rb6 {[%emt 0:00:30]} 21. Qc7 {[%emt 0:00:30]} Re6 {[%emt 0:00:30]} 22. Nd4 {[%emt 0:00:30]} Bd6 {[%emt 0:00:30]} 23. Qa5 {[%emt 0:00:30] Black did not feel at home in the position after the opening.  Weighted Error Value: White=0.03 (flawless) /Black=0.62} 1-0